bitfinex/quotes_BTCUSD_20250727
["timestamp","ask_amount","ask_price","bid_price","bid_amount"]
[1753624158474,0.17758466,118280.0,118270.0,0.37603538]
[1753624158702,0.5465903,118280.0,118270.0,0.37603538]
[1753624159390,0.56349896,118280.0,118270.0,0.37603538]
[1753624159623,0.56349896,118280.0,118270.0,0.37603545]
[1753624160332,0.56349896,118280.0,118270.0,0.36758023]
[1753624161275,0.56349896,118280.0,118270.0,0.37603545]
[1753624161734,0.56349896,118280.0,118270.0,0.3844906]
[1753624162612,0.02540303,118280.0,118270.0,0.39294568]
[1753624162850,0.38595416,118280.0,118270.0,0.40140069]
[1753624163074,0.39440803,118280.0,118270.0,0.40140069]
[1753624163281,0.40286247,118280.0,118270.0,0.39294568]
[1753624164274,0.39440803,118280.0,118270.0,0.40140069]
[1753624166209,0.39440803,118280.0,118270.0,0.40985563]
[1753624166423,0.38595373,118280.0,118270.0,0.40985563]
[1753624166847,0.39440803,118280.0,118270.0,0.40140069]
[1753624167067,0.40286247,118280.0,118270.0,0.39294568]
[1753624167289,0.39440803,118280.0,118270.0,0.40140062]
[1753624167515,0.01694809,118280.0,118270.0,0.40985549]
[1753624167729,0.01694809,118280.0,118270.0,0.40140027]
[1753624167946,0.01694809,118280.0,118270.0,0.40985507]
[1753624169140,0.01694809,118280.0,118270.0,0.3929454]
[1753624169349,0.02540231,118280.0,118270.0,0.38449046]
[1753624169569,0.02540231,118280.0,118270.0,0.3929454]
[1753624169941,0.02540231,118280.0,118270.0,0.40140027]
[1753624170148,0.01694809,118280.0,118270.0,0.40140027]
[1753624170347,4e-05,118280.0,118270.0,0.77886028]
[1753624170945,0.00849387,118280.0,118270.0,0.77886028]
[1753624171147,4e-05,118280.0,118270.0,0.77886028]
[1753624172185,0.00849394,118280.0,118270.0,0.77886028]
[1753624172794,4e-05,118280.0,118270.0,0.77886028]
[1753624173305,0.00849394,118280.0,118270.0,0.77886028]
[1753624173492,4e-05,118280.0,118270.0,0.77886028]
[1753624173778,0.00849394,118280.0,118270.0,0.77886028]
[1753624174217,4e-05,118280.0,118270.0,0.77886028]
[1753624174439,0.00849394,118280.0,118270.0,0.77886028]
[1753624174751,0.00849387,118280.0,118270.0,0.77886028]
[1753624175013,4e-05,118280.0,118270.0,0.77886028]
[1753624176264,0.00849394,118280.0,118270.0,0.77886028]
[1753624176485,4e-05,118280.0,118270.0,0.77886028]
[1753624178237,0.00849387,118280.0,118270.0,0.77886028]
[1753624178697,4e-05,118280.0,118270.0,0.77886028]
[1753624180156,0.01694795,118280.0,118270.0,0.77040556]
[1753624180380,0.01694788,118280.0,118270.0,0.40985464]
[1753624184194,0.00849387,118280.0,118270.0,0.40985464]
[1753624184436,0.01694781,118280.0,118270.0,0.40985464]
[1753624185110,4e-05,118280.0,118270.0,0.40985464]
[1753624185779,0.00849394,118280.0,118270.0,0.40985464]
[1753624187057,0.00849394,118280.0,118270.0,0.77886028]
[1753624187658,4e-05,118280.0,118270.0,0.40985464]
[1753624187972,0.00849394,118280.0,118270.0,0.40985464]
[1753624189115,4e-05,118280.0,118270.0,0.40985464]
[1753624189756,4e-05,118280.0,118270.0,0.77886028]
[1753624190845,0.00849394,118280.0,118270.0,0.40985464]
[1753624191639,0.00849387,118280.0,118270.0,0.40985464]
[1753624193964,0.01694788,118280.0,118270.0,0.40985464]
[1753624194214,0.00849387,118280.0,118270.0,0.40985464]
[1753624195322,4e-05,118280.0,118270.0,0.40985464]
[1753624196100,0.00849394,118280.0,118270.0,0.40985464]
[1753624197031,4e-05,118280.0,118270.0,0.40985464]
[1753624198049,0.00849394,118280.0,118270.0,0.40985464]
[1753624199265,0.00849394,118280.0,118270.0,0.77886028]
[1753624200270,0.00849387,118280.0,118270.0,0.40985464]
[1753624200477,0.4028619,118280.0,118270.0,0.38449032]
[1753624200893,0.4028619,118280.0,118270.0,0.36849032]
[1753624201091,0.4028619,118280.0,118270.0,0.36849046]
[1753624201293,0.4028619,118280.0,118270.0,0.23973046]
[1753624201516,0.3944076,118280.0,118270.0,0.3764654]
[1753624201756,0.4028619,118280.0,118270.0,0.3764654]
[1753624202074,0.3944076,118280.0,118270.0,0.39337507]
[1753624202298,0.3944076,118280.0,118270.0,0.38492027]
[1753624202523,0.40286182,118280.0,118270.0,0.35948482]
[1753624202736,0.40286182,118280.0,118270.0,0.36793976]
[1753624203014,0.40286182,118280.0,118270.0,0.35948482]
[1753624203234,0.40286182,118280.0,118270.0,0.36793976]
[1753624203455,0.3944076,118280.0,118270.0,0.37639463]
[1753624203893,0.39440753,118280.0,118270.0,0.38484893]
[1753624204115,0.39440753,118280.0,118270.0,0.37639421]
[1753624204777,0.40286175,118280.0,118270.0,0.36793941]
[1753624204993,0.40286175,118280.0,118270.0,0.3764867]
[1753624205405,0.40286175,118280.0,118270.0,0.36803183]
[1753624205618,0.40286175,118280.0,118270.0,0.3764867]
[1753624206277,0.02540189,118280.0,118270.0,0.3764867]
[1753624206508,0.40286175,118280.0,118270.0,0.36803183]
[1753624206776,0.39440753,118280.0,118270.0,0.36803183]
[1753624206993,0.39440753,118280.0,118270.0,0.3764867]
[1753624206994,0.40286175,118280.0,118270.0,0.3764867]
[1753624207366,0.40286175,118280.0,118270.0,0.36803211]
[1753624207602,0.41131612,118280.0,118270.0,0.36803211]
[1753624207781,0.40286175,118280.0,118270.0,0.36803211]
[1753624207989,0.40286175,118280.0,118270.0,0.37648705]
[1753624208480,0.40286175,118280.0,118270.0,0.36803211]
[1753624208670,0.40286175,118280.0,118270.0,0.37648705]
[1753624209343,0.40286175,118280.0,118270.0,0.36803211]
[1753624209561,0.41131605,118280.0,118270.0,0.36803211]
[1753624209771,0.39440753,118280.0,118270.0,0.38494192]
[1753624209983,0.40286175,118280.0,118270.0,0.37648705]
[1753624210914,0.40286175,118280.0,118270.0,0.38494192]
[1753624211135,0.02540189,118280.0,118270.0,0.39339672]
[1753624211351,0.02540189,118280.0,118270.0,0.40979672]
[1753624212000,0.02540189,118280.0,118270.0,0.40979622]
[1753624212215,0.02540189,118280.0,118270.0,0.4013415]
[1753624213075,0.01694781,118280.0,118270.0,0.4013415]
[1753624213262,0.02540189,118280.0,118270.0,0.40979622]
[1753624213508,0.01694781,118280.0,118270.0,0.40979622]
[1753624214262,0.02540189,118280.0,118270.0,0.4013415]
[1753624216707,0.02540189,118280.0,118270.0,0.40979622]
[1753624216919,0.02540189,118280.0,118270.0,0.4013415]
[1753624217148,0.00849387,118280.0,118270.0,0.4013415]
[1753624217363,0.00849387,118280.0,118270.0,0.77880186]
[1753624217791,0.01694788,118280.0,118270.0,0.40979622]
[1753624219366,0.00849387,118280.0,118270.0,0.40979622]
[1753624219621,0.01694788,118280.0,118270.0,0.40979622]
[1753624220275,0.00849387,118280.0,118270.0,0.40979622]
[1753624220491,0.01694781,118280.0,118270.0,0.40979622]
[1753624221183,0.02540189,118280.0,118270.0,0.4013415]
[1753624221401,0.03385611,118280.0,118270.0,0.3928867]
[1753624221629,0.40286175,118280.0,118270.0,0.3928867]
[1753624222098,4e-05,118280.0,118270.0,0.40134142]
[1753624222320,4e-05,118280.0,118270.0,0.77034706]
[1753624224425,0.00849387,118280.0,118270.0,0.77034706]
[1753624225132,0.01694788,118280.0,118270.0,0.77034706]
[1753624225330,0.00849387,118280.0,118270.0,0.77034706]
[1753624225574,0.01694781,118280.0,118270.0,0.77034706]
[1753624225826,0.01694781,118280.0,118270.0,0.40979622]
[1753624226116,0.02540189,118280.0,118270.0,0.77880186]
[1753624226340,0.02540182,118280.0,118270.0,0.77880186]
[1753624226582,0.02540182,118280.0,118270.0,0.40979622]
[1753624226824,0.03385597,118280.0,118270.0,0.4013415]
[1753624227293,0.03385597,118280.0,118270.0,0.3928867]
[1753624227735,0.40286161,118280.0,118270.0,0.3928867]
[1753624227970,0.40286161,118280.0,118270.0,0.38443183]
[1753624228188,0.40286161,118280.0,118270.0,0.3928867]
[1753624229148,0.40286161,118280.0,118270.0,0.4013415]
[1753624229585,0.40286161,118280.0,118270.0,0.3928867]
[1753624230250,0.40286161,118280.0,118270.0,0.38443183]
[1753624230674,0.40286161,118280.0,118270.0,0.4013415]
[1753624230871,0.40286161,118280.0,118270.0,0.3928867]
[1753624231315,0.40286161,118280.0,118270.0,0.4013415]
[1753624231531,0.02540182,118280.0,118270.0,0.40979622]
[1753624231746,0.02540182,118280.0,118270.0,0.4013415]
[1753624232375,0.02540182,118280.0,118270.0,0.40979622]
[1753624233436,0.02540182,118280.0,118270.0,0.4013415]
[1753624233908,0.03385597,118280.0,118270.0,0.3928867]
[1753624234545,0.02540182,118280.0,118270.0,0.40134142]
[1753624234753,0.02540182,118280.0,118270.0,0.3928867]
[1753624234964,0.02540182,118280.0,118270.0,0.4013415]
[1753624235188,0.03385597,118280.0,118270.0,0.3928867]
[1753624235606,0.03385597,118280.0,118270.0,0.4013415]
[1753624236247,0.03385597,118280.0,118270.0,0.3928867]
[1753624236499,0.03385604,118280.0,118270.0,0.3928867]
[1753624237327,0.03385604,118280.0,118270.0,0.38443183]
[1753624237551,0.03385604,118280.0,118270.0,0.39288705]
[1753624238672,0.03385604,118280.0,118270.0,0.38443211]
[1753624238901,0.40286168,118280.0,118270.0,0.39288705]
[1753624239557,0.03385604,118280.0,118270.0,0.39288705]
[1753624239774,0.40286168,118280.0,118270.0,0.39288705]
[1753624240220,0.40286168,118280.0,118270.0,0.40134192]
[1753624240702,0.40286168,118280.0,118270.0,0.39288705]
[1753624242223,0.40286168,118280.0,118270.0,0.38443211]
[1753624242644,0.40286168,118280.0,118270.0,0.39288705]
[1753624244040,0.40286218,118280.0,118270.0,0.3595771]
[1753624244272,0.40286218,118280.0,118270.0,0.36803225]
[1753624244911,0.41330669,118280.0,118270.0,0.3438771]
[1753624245128,0.41330662,118280.0,118270.0,0.35233225]
[1753624245603,0.40485218,118280.0,118270.0,0.36078733]
[1753624246238,0.41330669,118280.0,118270.0,0.35233225]
[1753624246450,0.41330669,118280.0,118270.0,0.3438771]
[1753624246670,0.40485218,118280.0,118270.0,0.35233225]
[1753624246905,0.40485218,118280.0,118270.0,0.36078726]
[1753624247118,0.41330669,118280.0,118270.0,0.35233225]
[1753624247549,0.40485218,118280.0,118270.0,0.35233225]
[1753624248000,0.40485218,118280.0,118270.0,0.36924234]
[1753624248422,0.39639781,118280.0,118270.0,0.36924234]
[1753624248676,0.39639781,118280.0,118270.0,0.39399728]
[1753624248871,0.39639781,118280.0,118270.0,0.39399693]
[1753624249165,0.40286218,118280.0,118270.0,0.36863211]
[1753624249385,0.40286218,118280.0,118270.0,0.37708712]
[1753624249605,0.39440781,118280.0,118270.0,0.38554206]
[1753624250041,0.40286211,118280.0,118270.0,0.37708712]
[1753624251374,0.40286211,118280.0,118270.0,0.38554206]
[1753624251820,0.39440781,118280.0,118270.0,0.38554206]
[1753624252500,0.40286211,118280.0,118270.0,0.37708712]
[1753624252734,0.40286211,118280.0,118270.0,0.36863211]
[1753624252933,0.03385647,118280.0,118270.0,0.36863211]
[1753624253476,4e-05,118280.0,118270.0,0.39399678]
[1753624253732,4e-05,118280.0,118270.0,0.77820242]
[1753624253968,4e-05,118280.0,118270.0,0.86267972]
[1753624254224,4e-05,118280.0,118270.0,1.20267972]
[1753624254465,4e-05,118280.0,118270.0,1.57168536]
[1753624255130,4e-05,118280.0,118270.0,1.20267972]
[1753624257160,4e-05,118280.0,118270.0,1.20667972]
[1753624260339,4e-05,118280.0,118270.0,1.20867972]
[1753624267426,4e-05,118280.0,118270.0,1.20013243]
[1753624267888,4e-05,118280.0,118270.0,2.50353343]
[1753624269210,4e-05,118280.0,118270.0,2.26502243]
[1753624269615,4e-05,118280.0,118270.0,2.19312243]
[1753624271753,4e-05,118280.0,118270.0,1.74082743]
[1753624272803,4e-05,118280.0,118270.0,1.74921911]
[1753624279468,4e-05,118280.0,118270.0,1.20852411]
[1753624279647,4e-05,118280.0,118270.0,2.88500811]
[1753624279858,4e-05,118280.0,118270.0,2.53500811]
[1753624280010,4e-05,118280.0,118270.0,2.50501611]
[1753624280644,4e-05,118280.0,118270.0,2.87402175]
[1753624281085,4e-05,118280.0,118270.0,2.50501611]
[1753624282810,4e-05,118280.0,118270.0,2.25343411]
[1753624283751,4e-05,118280.0,118270.0,2.62243975]
[1753624285527,4e-05,118280.0,118270.0,2.67317975]
[1753624287889,4e-05,118280.0,118270.0,1.93516847]
[1753624288116,4e-05,118280.0,118270.0,2.67317975]
[1753624288546,4e-05,118280.0,118270.0,2.24801747]
[1753624288764,4e-05,118280.0,118270.0,2.98602875]
[1753624289676,4e-05,118280.0,118270.0,3.26608975]
[1753624290298,4e-05,118280.0,118270.0,3.21534975]
[1753624290508,4e-05,118280.0,118270.0,3.41518075]
[1753624290725,4e-05,118280.0,118270.0,3.07716275]
[1753624291285,4e-05,118280.0,118270.0,2.70815711]
[1753624291494,4e-05,118280.0,118270.0,2.70138911]
[1753624292576,4e-05,118280.0,118270.0,2.69018111]
[1753624293509,4e-05,118280.0,118270.0,2.50536311]
[1753624293740,4e-05,118280.0,118270.0,2.69521611]
[1753624294171,4e-05,118280.0,118270.0,3.06422175]
[1753624294629,4e-05,118280.0,118270.0,6.56484175]
[1753624294914,4e-05,118280.0,118270.0,6.46855075]
[1753624295142,4e-05,118280.0,118270.0,1.57752975]
[1753624295865,4e-05,118280.0,118270.0,6.51855075]
[1753624296508,4e-05,118280.0,118270.0,6.14954511]
[1753624296727,4e-05,118280.0,118270.0,6.10142311]
[1753624297841,4e-05,118280.0,118270.0,6.20852411]
[1753624298735,4e-05,118280.0,118270.0,6.15142311]
[1753624299793,4e-05,118280.0,118270.0,6.20852411]
[1753624301592,4e-05,118280.0,118270.0,6.57752975]
[1753624302942,4e-05,118280.0,118270.0,6.20852411]
[1753624303807,4e-05,118280.0,118270.0,1.20852411]
[1753624304014,4e-05,118280.0,118270.0,6.20852411]
[1753624304454,4e-05,118280.0,118270.0,6.49453277]
[1753624304671,0.001078,118320.0,118310.0,1.37274665]
[1753624304891,0.001078,118320.0,118310.0,1.97760123]
[1753624305108,0.06289653,118320.0,118310.0,0.6353184]
[1753624305356,0.06289653,118320.0,118310.0,0.43201027]
[1753624305801,0.06289653,118320.0,118310.0,0.80101591]
[1753624306216,0.06289653,118320.0,118310.0,0.80201591]
[1753624306432,0.60938645,118320.0,118310.0,0.32317673]
[1753624306668,0.62628961,118320.0,118310.0,0.32317673]
[1753624306889,0.61783839,118320.0,118310.0,0.02588932]
[1753624307103,0.61783839,118320.0,118310.0,0.15412932]
[1753624307530,0.61783839,118320.0,118310.0,0.32217673]
[1753624307973,0.61783839,118320.0,118310.0,0.15312932]
[1753624308197,0.61783839,118320.0,118310.0,0.02488932]
[1753624308411,0.61783839,118320.0,118310.0,0.15312932]
[1753624308621,0.61783839,118320.0,118310.0,0.12824]
[1753624308836,0.61783839,118320.0,118310.0,0.15420496]
[1753624318346,0.61783839,118320.0,118310.0,0.02596496]
[1753624318762,0.04790431,118310.0,118300.0,0.30614193]
[1753624318971,0.08133646,118310.0,118300.0,0.29768885]
[1753624319185,0.08978825,118310.0,118300.0,0.29768885]
[1753624319396,0.08978825,118310.0,118300.0,0.30614193]
[1753624319825,0.08978825,118310.0,118300.0,0.29768885]
[1753624320091,0.25883566,118310.0,118300.0,0.32204885]
[1753624320501,0.25038387,118310.0,118300.0,0.29768885]
[1753624320749,0.62231951,118310.0,118300.0,0.29768885]
[1753624321195,0.25038387,118310.0,118300.0,0.29768885]
[1753624322960,0.25038387,118310.0,118300.0,0.32304885]
[1753624323172,0.24193193,118310.0,118300.0,0.32304885]
[1753624323620,0.24193193,118310.0,118300.0,0.32404885]
[1753624325115,0.21898193,118310.0,118300.0,0.32404885]
[1753624331601,0.20338193,118310.0,118300.0,0.32905885]
[1753624332969,0.19492978,118310.0,118300.0,0.32905885]
[1753624333711,0.17952978,118310.0,118300.0,0.32905885]
[1753624336273,0.21002978,118310.0,118300.0,0.32905885]
[1753624337806,0.19452978,118310.0,118300.0,0.3543018]
[1753624338692,0.17952978,118310.0,118300.0,0.3543018]
[1753624339935,0.17107741,118310.0,118300.0,0.3543018]
[1753624347716,0.54008305,118310.0,118300.0,0.18024295]
[1753624347754,0.59507305,118310.0,118300.0,0.15588295]
[1753624348221,0.59815305,118310.0,118300.0,0.02724295]
[1753624348454,0.59815305,118310.0,118300.0,0.02624295]
[1753624349172,0.59815305,118310.0,118300.0,0.02524295]
[1753624349647,0.18596765,118300.0,118290.0,0.32426574]
[1753624349874,0.18596765,118300.0,118290.0,0.32632574]
[1753624350111,0.18798765,118300.0,118290.0,0.32632574]
[1753624350965,0.18798765,118300.0,118290.0,0.32732574]
[1753624351650,0.18798765,118300.0,118290.0,0.32832574]
[1753624352073,0.18798765,118300.0,118290.0,0.35374401]
[1753624355251,0.18798765,118300.0,118290.0,0.18466827]
[1753624355509,0.18798765,118300.0,118290.0,0.35374426]
[1753624355745,0.57229329,118300.0,118290.0,0.35374426]
[1753624355988,0.21918765,118300.0,118290.0,0.18466827]
[1753624356410,0.24367765,118300.0,118290.0,0.15577827]
[1753624356629,0.21918765,118300.0,118290.0,0.15577827]
[1753624356861,0.21918765,118300.0,118290.0,0.17951827]
[1753624357678,0.72510329,118300.0,118290.0,0.02741827]
[1753624357912,0.74408329,118300.0,118290.0,0.02741827]
[1753624359968,0.74408329,118300.0,118290.0,0.02641827]
[1753624360471,0.74408329,118300.0,118290.0,0.02541827]
[1753624360912,0.17752978,118290.0,118280.0,0.3242391]
[1753624361138,0.17752978,118290.0,118280.0,0.3262991]
[1753624361361,0.17752978,118290.0,118280.0,0.35163074]
[1753624362269,0.17752978,118290.0,118280.0,0.3262991]
[1753624362972,0.18598336,118290.0,118280.0,0.3262991]
[1753624363199,0.1944368,118290.0,118280.0,0.3262991]
[1753624363415,0.1944368,118290.0,118280.0,0.3272991]
[1753624363624,0.1944368,118290.0,118280.0,0.3282991]
[1753624366580,0.1944368,118290.0,118280.0,0.69730474]
[1753624366798,0.1944368,118290.0,118280.0,0.71240474]
[1753624367722,0.1944368,118290.0,118280.0,0.72085925]
[1753624367926,0.1944368,118290.0,118280.0,0.71240474]
[1753624368389,0.1944368,118290.0,118280.0,0.71140474]
[1753624369532,0.1944368,118290.0,118280.0,0.71985925]
[1753624370169,0.1944368,118290.0,118280.0,0.3423991]
[1753624370380,0.1944368,118290.0,118280.0,0.71985925]
[1753624370527,0.1944368,118290.0,118280.0,0.71140474]
[1753624370766,0.1944368,118290.0,118280.0,0.71985925]
[1753624371401,0.01690702,118290.0,118280.0,0.71985925]
[1753624371634,0.02536002,118290.0,118280.0,0.74401362]
[1753624371866,0.03381367,118290.0,118280.0,0.73555925]
[1753624372099,0.20289023,118290.0,118280.0,0.72710474]
[1753624372316,0.20289023,118290.0,118280.0,0.73555925]
[1753624373573,0.20289023,118290.0,118280.0,0.72710474]
[1753624374057,0.03381424,118290.0,118280.0,0.72710474]
[1753624374275,0.03381424,118290.0,118280.0,0.73555918]
[1753624374500,0.03381424,118290.0,118280.0,0.73555925]
[1753624374912,0.03381424,118290.0,118280.0,0.74401369]
[1753624375742,0.03381424,118290.0,118280.0,0.73555925]
[1753624375984,0.03381424,118290.0,118280.0,0.74401369]
[1753624376162,0.02536045,118290.0,118280.0,0.74401369]
[1753624376372,0.03381417,118290.0,118280.0,0.74401369]
[1753624376864,0.03381417,118290.0,118280.0,0.73555925]
[1753624377414,0.20289016,118290.0,118280.0,0.3580991]
[1753624377627,0.20289016,118290.0,118280.0,0.74401369]
[1753624377873,0.03381417,118290.0,118280.0,0.74401369]
[1753624378109,0.03381417,118290.0,118280.0,0.73555925]
[1753624378356,0.20289016,118290.0,118280.0,0.3580991]
[1753624378565,0.20289016,118290.0,118280.0,0.73555925]
[1753624378787,0.20289016,118290.0,118280.0,0.3580991]
[1753624379014,0.20289016,118290.0,118280.0,0.72710474]
[1753624380265,0.20289016,118290.0,118280.0,0.73555925]
[1753624380485,0.18796336,118290.0,118280.0,0.32115029]
[1753624381250,0.18796336,118290.0,118280.0,0.32616029]
[1753624382259,0.18796336,118290.0,118280.0,0.72737488]
[1753624382260,0.01690737,118290.0,118280.0,0.72737488]
[1753624383126,0.01690737,118290.0,118280.0,0.35836924]
[1753624383342,0.01690737,118290.0,118280.0,0.72737488]
[1753624383783,0.01690737,118290.0,118280.0,0.73582925]
[1753624383995,0.01690737,118290.0,118280.0,0.72737488]
[1753624384212,0.01690666,118290.0,118280.0,0.73582925]
[1753624384439,0.02536024,118290.0,118280.0,0.75202925]
[1753624384697,0.03381396,118290.0,118280.0,0.75202925]
[1753624384906,0.20288995,118290.0,118280.0,0.73512044]
[1753624385295,0.20288995,118290.0,118280.0,0.72666593]
[1753624385624,0.21134374,118290.0,118280.0,0.73512044]
[1753624385834,0.03381396,118290.0,118280.0,0.74357488]
[1753624386326,0.03381396,118290.0,118280.0,0.73512044]
[1753624386564,0.20289052,118290.0,118280.0,0.35766029]
[1753624386782,0.20289052,118290.0,118280.0,0.71046593]
[1753624387211,0.19443708,118290.0,118280.0,0.71046593]
[1753624387828,0.19443708,118290.0,118280.0,0.34146029]
[1753624388273,0.19443708,118290.0,118280.0,0.71046593]
[1753624390260,0.19443708,118290.0,118280.0,0.71892044]
[1753624390483,0.19443708,118290.0,118280.0,0.71046593]
[1753624390698,0.19443708,118290.0,118280.0,0.34146029]
[1753624390907,0.19443708,118290.0,118280.0,0.71046593]
[1753624393026,0.19443708,118290.0,118280.0,0.34146029]
[1753624393234,0.19443708,118290.0,118280.0,0.71046593]
[1753624393744,0.19443708,118290.0,118280.0,0.34146029]
[1753624393975,0.19443708,118290.0,118280.0,0.71046593]
[1753624394387,0.19443708,118290.0,118280.0,0.34146029]
[1753624394864,0.1859835,118290.0,118280.0,0.34146029]
[1753624396028,0.1859835,118290.0,118280.0,0.3499148]
[1753624396480,0.1859835,118290.0,118280.0,0.35836924]
[1753624396677,0.1859835,118290.0,118280.0,0.3499148]
[1753624397014,0.1859835,118290.0,118280.0,0.34146029]
[1753624397425,0.1859835,118290.0,118280.0,0.71046593]
[1753624397659,0.1859835,118290.0,118280.0,0.34146029]
[1753624398058,0.1859835,118290.0,118280.0,0.71046593]
[1753624399842,0.1859835,118290.0,118280.0,0.34146029]
[1753624401780,0.1859835,118290.0,118280.0,0.3499148]
[1753624402427,0.1859835,118290.0,118280.0,0.34146029]
[1753624403075,0.01690723,118290.0,118280.0,0.71892037]
[1753624403291,0.01690723,118290.0,118280.0,0.71892044]
[1753624403502,0.18598322,118290.0,118280.0,0.34146029]
[1753624406575,0.18598322,118290.0,118280.0,0.71046593]
[1753624407002,0.18598322,118290.0,118280.0,0.71892044]
[1753624407577,0.18598322,118290.0,118280.0,0.72636593]
[1753624409419,0.18598322,118290.0,118280.0,0.35736029]
[1753624410517,0.17752971,118290.0,118280.0,0.35736029]
[1753624410739,0.17752971,118290.0,118280.0,0.32616029]
[1753624412349,0.54016163,118290.0,118280.0,0.32616029]
[1753624412553,0.54458011,118290.0,118280.0,0.32616029]
[1753624413435,0.17754459,118280.0,118270.0,0.23468369]
[1753624413656,0.19445325,118280.0,118270.0,0.35034369]
[1753624413877,0.20290733,118280.0,118270.0,0.36725406]
[1753624414115,0.03381704,118280.0,118270.0,0.38235406]
[1753624414772,0.0169083,118280.0,118270.0,0.39080914]
[1753624414990,0.0169083,118280.0,118270.0,0.77772459]
[1753624415740,0.0169083,118280.0,118270.0,0.77872459]
[1753624416391,0.19040156,118290.0,118280.0,0.16909029]
[1753624416595,0.19890379,118290.0,118280.0,0.17121029]
[1753624416870,0.19045035,118290.0,118280.0,0.19790029]
[1753624420345,0.19045035,118290.0,118280.0,0.21340029]
[1753624421891,0.19045035,118290.0,118280.0,0.58240593]
[1753624422114,0.19045035,118290.0,118280.0,0.21340029]
[1753624422549,0.19045035,118290.0,118280.0,0.19790029]
[1753624423405,0.1840767,118290.0,118280.0,0.02881]
[1753624423652,0.55308234,118290.0,118280.0,0.02573]
[1753624423871,0.55308234,118290.0,118280.0,0.02361]
[1753624424764,0.17754473,118280.0,118270.0,0.73232933]
[1753624424989,0.18599924,118280.0,118270.0,0.74290455]
[1753624425205,0.01690852,118280.0,118270.0,0.7362597]
[1753624425413,0.20290726,118280.0,118270.0,0.71934933]
[1753624425833,0.20290726,118280.0,118270.0,0.72780455]
[1753624425970,0.21136177,118280.0,118270.0,0.7372597]
[1753624426190,0.21136177,118280.0,118270.0,0.7530597]
[1753624426394,0.21136177,118280.0,118270.0,0.74560455]
[1753624426645,0.21136177,118280.0,118270.0,0.7540597]
[1753624427019,0.21136177,118280.0,118270.0,0.38505406]
[1753624427239,0.21136177,118280.0,118270.0,0.36814369]
[1753624427642,0.20290769,118280.0,118270.0,0.36814369]
[1753624427847,0.20290769,118280.0,118270.0,0.74560455]
[1753624428217,0.20290769,118280.0,118270.0,0.73714933]
[1753624428627,0.20290769,118280.0,118270.0,0.74560455]
[1753624429071,0.20290769,118280.0,118270.0,0.72980455]
[1753624429419,0.20290769,118280.0,118270.0,0.35234369]
[1753624429642,0.19445347,118280.0,118270.0,0.35234369]
[1753624434153,0.19445347,118280.0,118270.0,0.72134933]
[1753624435389,0.19648347,118280.0,118270.0,0.33684369]
[1753624435986,0.19648347,118280.0,118270.0,0.34529891]
[1753624436186,0.19648347,118280.0,118270.0,0.33584369]
[1753624436589,0.19648347,118280.0,118270.0,0.72850455]
[1753624436805,0.19445347,118280.0,118270.0,0.72004933]
[1753624437236,0.19445347,118280.0,118270.0,0.71904933]
[1753624438475,0.19445347,118280.0,118270.0,0.35004369]
[1753624438777,0.19445347,118280.0,118270.0,0.71904933]
[1753624438918,0.19445347,118280.0,118270.0,0.35004369]
[1753624439135,0.19445347,118280.0,118270.0,0.36584369]
[1753624439369,0.19445347,118280.0,118270.0,0.73484933]
[1753624440603,0.19445347,118280.0,118270.0,0.36584369]
[1753624440850,0.19445347,118280.0,118270.0,0.33484369]
[1753624442111,0.19648347,118280.0,118270.0,0.33484369]
[1753624443370,0.19648347,118280.0,118270.0,0.35064369]
[1753624443581,0.18802917,118280.0,118270.0,0.1605391]
[1753624443820,0.55703481,118280.0,118270.0,0.1605391]
[1753624444302,0.18802917,118280.0,118270.0,0.1605391]
[1753624445474,0.31670917,118280.0,118270.0,0.1605391]
[1753624447649,0.68571481,118280.0,118270.0,0.1605391]
[1753624449826,0.68571481,118280.0,118270.0,0.1656791]
[1753624450719,0.31670917,118280.0,118270.0,0.33478369]
[1753624450989,0.18802917,118280.0,118270.0,0.70378933]
[1753624451224,0.31459881,118280.0,118270.0,0.71978933]
[1753624451683,0.30614466,118280.0,118270.0,0.71978933]
[1753624458091,0.30614466,118280.0,118270.0,0.35078369]
[1753624458306,0.30614466,118280.0,118270.0,0.71978933]
[1753624459137,0.29769029,118280.0,118270.0,0.71978933]
[1753624459346,0.29769029,118280.0,118270.0,0.35078369]
[1753624462549,0.29769029,118280.0,118270.0,0.34249459]
[1753624465648,0.66669593,118280.0,118270.0,0.34249459]
[1753624466724,0.29769029,118280.0,118270.0,0.34249459]
[1753624466926,0.66669593,118280.0,118270.0,0.34249459]
[1753624470207,0.66725092,118280.0,118270.0,0.34249459]
[1753624470432,0.29824528,118280.0,118270.0,0.34249459]
[1753624470664,0.66725092,118280.0,118270.0,0.34249459]
[1753624471528,0.66725092,118280.0,118270.0,0.35097457]
[1753624471942,0.29824528,118280.0,118270.0,0.35097457]
[1753624475179,0.29824528,118280.0,118270.0,0.36637457]
[1753624475380,0.29824528,118280.0,118270.0,0.73538021]
[1753624475783,0.29824528,118280.0,118270.0,0.36637457]
[1753624475985,0.29824528,118280.0,118270.0,0.73538021]
[1753624476837,0.29824528,118280.0,118270.0,0.36637457]
[1753624482015,0.00055499,118280.0,118270.0,0.76074488]
[1753624482227,0.009009,118280.0,118270.0,0.76074496]
[1753624482671,0.009009,118280.0,118270.0,0.76106496]
[1753624483132,0.01746322,118280.0,118270.0,0.75261023]
[1753624483376,0.01746322,118280.0,118270.0,0.38360459]
[1753624483627,0.01746322,118280.0,118270.0,0.74415529]
[1753624483896,0.02591759,118280.0,118270.0,0.74415529]
[1753624484173,0.02591759,118280.0,118270.0,0.75261044]
[1753624484715,0.02591759,118280.0,118270.0,0.74415536]
[1753624484971,0.02591759,118280.0,118270.0,0.75261044]
[1753624486399,0.02591759,118280.0,118270.0,0.74415536]
[1753624486611,0.02591759,118280.0,118270.0,0.75261044]
[1753624486903,0.02591759,118280.0,118270.0,0.76106545]
[1753624487955,0.01746322,118280.0,118270.0,0.76952039]
[1753624488214,0.01746322,118280.0,118270.0,0.76106545]
[1753624488427,0.01746322,118280.0,118270.0,0.75261044]
[1753624488647,0.02591759,118280.0,118270.0,0.75261044]
[1753624489202,0.01746322,118280.0,118270.0,0.76106545]
[1753624489409,0.01746322,118280.0,118270.0,0.75261044]
[1753624489615,0.02591759,118280.0,118270.0,0.75261044]
[1753624490551,0.02591759,118280.0,118270.0,0.76106545]
[1753624490728,0.02591752,118280.0,118270.0,0.75261044]
[1753624491195,0.02591752,118280.0,118270.0,0.74415536]
[1753624491458,0.03437189,118280.0,118270.0,0.75261044]
[1753624491757,0.20346261,118280.0,118270.0,0.36669457]
[1753624491973,0.20346261,118280.0,118270.0,0.73570021]
[1753624492215,0.19500839,118280.0,118270.0,0.73570021]
[1753624492444,0.18655409,118280.0,118270.0,0.36669457]
[1753624492646,0.18854409,118280.0,118270.0,0.36669457]
[1753624492942,0.18854409,118280.0,118270.0,0.35129457]
[1753624493173,0.54909536,118280.0,118270.0,0.17893998]
[1753624493397,0.54909536,118280.0,118270.0,0.16096998]
[1753624493885,0.57365536,118280.0,118270.0,0.16096998]